Cogmind - Beta 10.1 @@@ ROGUE MODE // 2020.09.25 @ 16:21:09 // Winter2019/RPGLIKE Player: HOTSOUP Result: Destroyed by G-47 Trooper with Particle Gun Performance ------------- Evolutions (2) 1000 Regions Visited (4) 800 Robots Destroyed (42) 210 Value Destroyed (1039) 1039 Prototype IDs (11) 220 Alien Tech Used (0) 0 Bonus (36) 36 TOTAL SCORE: 3305 Bonus ------- High Alert Combat Kills 36 Cogmind --------- Core Integrity 0/600 Matter 50/300 Energy 98/100 System Corruption 2% Temperature Cool (11) Movement Flying (40) Location -8/Materials Parts ------- > --- POWER (1) -------- (None) > --- PROPULSION (1) --- Cesium-ion Thruster > --- UTILITY (3) ------ Sensor Array Advanced Signal Interpreter > --- WEAPON (1) ------- Hammer > --- INVENTORY (1) ---- (None) Peak State ------------ > --- POWER ------------ (None) > --- PROPULSION ------- Cesium-ion Thruster > --- UTILITY ---------- Sensor Array Signal Interpreter Advanced Signal Interpreter > --- WEAPON ----------- Heavy EM Shotgun > --- INVENTORY -------- (None) [Rating: 12] Favorites ----------- Power Light Ion Engine Engine Light Ion Engine Propulsion VTOL Module Hover Unit Airjet Flight Unit VTOL Module Utility Sensor Array Device Sensor Array Processor Signal Interpreter Weapon Grenade Launcher Energy Gun EM Shotgun Energy Cannon Light EM Pulse Cannon Ballistic Cannon Improved Light Cannon Launcher Grenade Launcher Impact Weapon Hammer Build | -11 -10 -9 -9 -8 ------- Run | Scr Mat Mat Min Mat Slots Evolved 2 | . . 2 . . Power . | . . . . . Propulsion . | . . . . . Utility 2 | . . 2 . . Weapon . | . . . . . Parts Attached 25 | . 7 12 . 6 Power 2 | . 2 . . . Engine 2 | . 2 . . . Core . | . . . . . Reactor . | . . . . . Propulsion 5 | . 1 1 . 3 Treads . | . . . . . Leg . | . . . . . Wheel . | . . . . . Hover 1 | . . . . 1 Flight 4 | . 1 1 . 2 Utility 5 | . 2 2 . 1 Device 2 | . 1 1 . . Storage . | . . . . . Processor 3 | . 1 1 . 1 Hackware . | . . . . . Protection . | . . . . . Artifact . | . . . . . Weapon 13 | . 2 9 . 2 Energy Gun 4 | . 1 2 . 1 Energy Cannon 1 | . . 1 . . Ballistic Gun . | . . . . . Ballistic Cannon 2 | . . 2 . . Launcher 5 | . 1 4 . . Special Weapon . | . . . . . Impact Weapon 1 | . . . . 1 Slashing Weapon . | . . . . . Piercing Weapon . | . . . . . Special Melee Weapon . | . . . . . Unidentified Prototypes . | . . . . . Parts Lost 1 | . . . . 1 Power . | . . . . . Propulsion . | . . . . . Utility . | . . . . . Weapon 1 | . . . . 1 Highest Loss Streak 1 | . . . . 1 Average Slot Usage (%) 60 | . 70 52 66 65 Flight 17 | . 21 16 16 15 Device 10 | . 4 12 16 16 Processor 13 | . 20 7 16 16 Energy Gun 6 | . 13 2 . 6 Ballistic Cannon 3 | . . 6 . . Launcher 6 | . 10 5 16 4 Naked Turns 12 | . 12 . . . Heaviest Build 6 | . 6 5 4 5 Greatest Support 6 | 3 4 5 5 6 Greatest Overweight (x) 1 | . 1 . . 1 Average Overweight (x) . | . . . . . Largest Inventory Capacity 1 | . . 1 1 1 Average Capacity . | . . . 1 1 Most Carried 1 | . . 1 . 1 Average Carried . | . . . . . Final Capacity 1 | . . 1 1 1 Final Carried . | . . . . . Class Distribution -------------------- 100% | Hacker-Mutant Dominant Class ---------------- Hacker-Mutant | -10/Materials Hacker-Mutant | -9/Materials Hacker-Mutant | -9/Mines Hacker-Mutant | -8/Materials Resources | -11 -10 -9 -9 -8 ----------- Run | Scr Mat Mat Min Mat Matter Collected 619 | 200 89 264 . 66 Remotely . | . . . . . Salvage Created 658 | . 124 338 . 196 Parts 64 | . 21 29 . 14 Haulers Intercepted . | . . . . . Recyclers Shooed . | . . . . . Parts Field Recycled . | . . . . . Retrieved Matter . | . . . . . Parts Self-Destructed . | . . . . . Prevented . | . . . . . Kills | -11 -10 -9 -9 -8 ------- Run | Scr Mat Mat Min Mat Combat Hostiles Destroyed 28 | . 8 12 . 8 Guns 10 | . 6 2 . 2 AOE 18 | . 2 10 . 6 Classes Destroyed 13 | . 6 5 . 2 Worker 3 | . . 2 . 1 Builder 3 | . 1 2 . . Tunneler 1 | . 1 . . . Recycler 1 | . . 1 . . Mechanic 1 | . 1 . . . Operator 1 | . . 1 . . Watcher 4 | . 1 3 . . Swarmer 10 | . 6 . . 4 Grunt 10 | . 2 7 . 1 Brawler 1 | . . . . 1 Duelist 1 | . . 1 . . Sentry 5 | . . 4 . 1 Hunter 1 | . . . . 1 Best Kill Streak 6 | . 5 6 . 6 Combat Bots Only 5 | . 5 5 . 5 Max Kills in Single Turn 3 | . 2 3 . 2 Gunslinging . | . . . . . Exploded 3 | . 1 3 . 2 Melee . | . . . . . Uniques/NPCs Destroyed . | . . . . . Combat | -11 -10 -9 -9 -8 -------- Run | Scr Mat Mat Min Mat Damage Taken 1344 | . 240 510 . 594 Core 1172 | . 208 454 . 510 Absorbed by Shields . | . . . . . Redirected to Core 593 | . 106 195 . 292 Core Remaining (%) 92 | 100 93 . 83 . Volleys Fired 90 | . 20 53 . 17 Largest 1 | . 1 1 . 1 Hottest 65 | . 45 65 . 50 Shots Fired 89 | . 20 53 . 16 Gun 36 | . 16 15 . 5 Cannon 17 | . . 17 . . Launcher 36 | . 4 21 . 11 Special . | . . . . . Kinetic 16 | . . 16 . . Thermal 15 | . . 15 . . Explosive 36 | . 4 21 . 11 Electromagnetic 22 | . 16 1 . 5 Robot Hit Streak 12 | . 4 12 . 7 Robot Miss Streak 5 | . 2 5 . 3 Penetration Max . | . . . . . Secondary Targets . | . . . . . Shots Hit Robots 63 | . 18 31 . 14 Core Hits 84 | . 18 44 . 22 Critical Hits . | . . . . . Critical Kills . | . . . . . Critical Parts Destroyed . | . . . . . Melee Attacks 9 | . . . . 9 Impact 9 | . . . . 9 Slashing . | . . . . . Piercing . | . . . . . Sneak Attacks 1 | . . . . 1 Combat Hostiles . | . . . . . Follow-up Attacks . | . . . . . Damage Inflicted 2636 | . 459 1351 . 826 Guns 338 | . 143 120 . 75 Cannons 115 | . . 115 . . Explosions 2133 | . 316 1116 . 701 Melee 50 | . . . . 50 Ramming . | . . . . . Kinetic 85 | . . 85 . . Thermal 321 | . 91 144 . 86 Explosive 1932 | . 225 1092 . 615 Electromagnetic 248 | . 143 30 . 75 Impact 50 | . . . . 50 Slashing . | . . . . . Piercing . | . . . . . Highest Corruption 2 | . . . . 2 Average Corruption 2 | . . . . 2 Corruption Purged . | . . . . . Effects 1 | . . . . 1 Weapon Failures 1 | . . . . 1 Overload Shots . | . . . . . Overflow Damage 11 | . . . . 11 Projectiles . | . . . . . Explosions 11 | . . . . 11 Melee . | . . . . . Knockbacks 1 | . . 1 . . Impact . | . . . . . Kinetic 1 | . . 1 . . Secondary . | . . . . . Self-Inflicted Damage 216 | . 28 71 . 117 Shots 8 | . 1 5 . 2 Rammed . | . . . . . Targets Rammed . | . . . . . Kicked . | . . . . . Crushed . | . . . . . Highest Temperature 58 | . 12 58 . 18 Average Temperature 14 | . 6 23 . 5 Received Heat Transfer 357 | . 72 159 . 126 Siege Activations . | . . . . . Robots Corrupted . | . . . . . Combat Hostiles . | . . . . . Parts Fried . | . . . . . Impact Corruptions . | . . . . . Robots Melted . | . . . . . Combat Hostiles . | . . . . . Parts Melted . | . . . . . Heat Transferred 465 | . 150 265 . 50 Parts Sabotaged . | . . . . . Parts Stolen . | . . . . . Parts Stripped . | . . . . . Power Chain Reactions 3 | . 1 1 . 1 Missiles Intercepted . | . . . . . Alert | -11 -10 -9 -9 -8 ------- Run | Scr Mat Mat Min Mat Peak Influence 696 | . 302 584 227 696 Initial 227 | . . 11 227 88 Average 205 | . 151 163 227 377 Maximum Alert Level 2 | . 1 2 1 2 Low Security (%) 60 | 100 69 76 . 19 Level 1 16 | . 30 5 100 15 Level 2 22 | . . 17 . 65 Level 3 . | . . . . . Level 4 . | . . . . . Level 5 . | . . . . . High Security . | . . . . . Max Security . | . . . . . Squads Dispatched 6 | . 1 3 . 2 Investigation 5 | . 1 2 . 2 Extermination . | . . . . . Reinforcement 1 | . . 1 . . Assault . | . . . . . Garrison . | . . . . . Intercept . | . . . . . Construction Impeded . | . . . . . Haulers Reinforced . | . . . . . Stealth | -11 -10 -9 -9 -8 --------- Run | Scr Mat Mat Min Mat Distress Signals 6 | . 3 . . 3 Communications Jammed . | . . . . . Distress Signals . | . . . . . Times Spotted 81 | . 21 28 . 32 Peak Tracking Total 13 | . 7 5 . 13 Tactical Retreats 13 | . 2 3 . 8 Traps | -11 -10 -9 -9 -8 ------- Run | Scr Mat Mat Min Mat Traps Triggered 1 | . . . . 1 Indirectly . | . . . . . Trap Hack Attempts . | . . . . . Triggered . | . . . . . Disarmed . | . . . . . Reprogrammed 13 | . 7 6 . . Reused 4 | . 3 1 . . Traps Extracted . | . . . . . Installed . | . . . . . Triggered 4 | . 3 1 . . Machines | -11 -10 -9 -9 -8 ---------- Run | Scr Mat Mat Min Mat Machines Disabled 6 | . . 4 . 2 Max in Single Turn 2 | . . 1 . 2 Garrison Access 1 | . . . . 1 Machines Sabotaged . | . . . . . Garrisons Compromised . | . . . . . Overloaded Fab Kills . | . . . . . Fab Network Shutdowns . | . . . . . Hacking | -11 -10 -9 -9 -8 --------- Run | Scr Mat Mat Min Mat Machines Accessed 23 | . 8 11 . 4 Terminals 19 | . 8 9 . 2 Fabricators . | . . . . . Repair Stations 1 | . . 1 . . Recycling Units . | . . . . . Scanalyzers 2 | . . 1 . 1 Garrison Access 1 | . . . . 1 Total Hacks 100 | . 37 53 . 10 Successful 81 | . 29 43 . 9 Failed 19 | . 8 10 . 1 Catastrophic 1 | . . 1 . . Database Lockouts . | . . . . . Manual 64 | . 21 34 . 9 Terminals 93 | . 37 50 . 6 Fabricators . | . . . . . Repair Stations 2 | . . 2 . . Recycling Units . | . . . . . Scanalyzers 2 | . . 1 . 1 Garrison Access 3 | . . . . 3 Terminal Hacks 42 | . 17 23 . 2 Part Schematic 2 | . 1 1 . . Prototype ID Bank 9 | . 1 8 . . Branch Access Points 1 | . 1 . . . Terminal Index 3 | . 1 1 . 1 Alert Level 4 | . 1 3 . . Unreport Threat 3 | . 1 2 . . Locate Traps 4 | . 2 2 . . Reprogram Traps 3 | . 2 1 . . Dispatch Records 3 | . 2 . . 1 Transport Status 1 | . 1 . . . Investigation Status 1 | . . 1 . . Recall Investigation 2 | . 1 1 . . Recall Reinforcements 1 | . . 1 . . Hauler Manifests 2 | . 1 1 . . Registered Components 1 | . 1 . . . Registered Prototypes 1 | . . 1 . . Zone Layout 1 | . 1 . . . Fabricator Hacks . | . . . . . Repair Station Hacks 2 | . . 2 . . Scan Component 1 | . . 1 . . Repair 1 | . . 1 . . Recycling Unit Hacks . | . . . . . Scanalyzer . | . . . . . Garrison Access Hacks . | . . . . . Unauthorized Hacks 37 | . 12 18 . 7 Terminals 32 | . 12 17 . 3 Track 10 | . 3 6 . 1 Botnet 17 | . 7 8 . 2 Disrupt 2 | . 1 1 . . Operators 3 | . 1 2 . . Fabricators . | . . . . . Repair Stations . | . . . . . Recycling Units . | . . . . . Scanalyzers 2 | . . 1 . 1 Extract 2 | . . 1 . 1 Garrison Access 3 | . . . . 3 Decoy 1 | . . . . 1 Watchers 1 | . . . . 1 Jam 1 | . . . . 1 Data Cores Recovered . | . . . . . Used . | . . . . . Hacking Detections 14 | . 4 8 . 2 Full Trace Events 3 | . 1 2 . . Feedback Events . | . . . . . Feedback Blocked . | . . . . . Robot Schematics Acquired . | . . . . . Robots Built . | . . . . . Matter . | . . . . . Time . | . . . . . Total Robot Build Rating . | . . . . . Part Schematics Acquired 23 | . 1 18 . 4 Parts Built . | . . . . . Matter . | . . . . . Time . | . . . . . Total Part Build Rating . | . . . . . Parts Repaired 1 | . . 1 . . Time 26 | . . 26 . . Parts Recycled . | . . . . . Recycled Matter . | . . . . . Retrieved Matter . | . . . . . Retrieved Components . | . . . . . Parts Scanalyzed . | . . . . . Part Schematics Acquired . | . . . . . Parts Damaged . | . . . . . Bothacking | -11 -10 -9 -9 -8 ------------ Run | Scr Mat Mat Min Mat Used RIF Installer . | . . . . . Robots Hacked . | . . . . . Non-combat . | . . . . . Combat . | . . . . . Robot Hacks Applied . | . . . . . Relay Couplers Released . | . . . . . Robots Rewired . | . . . . . Allies Hacked . | . . . . . Hacks Repelled . | . . . . . Allies | -11 -10 -9 -9 -8 -------- Run | Scr Mat Mat Min Mat Total Allies . | . . . . . Largest Group . | . . . . . Highest-Rated Group . | . . . . . Highest-Rated Ally . | . . . . . Total Orders . | . . . . . Ally Attacks . | . . . . . Total Damage . | . . . . . Kills . | . . . . . Allies Corrupted . | . . . . . Allies Melted . | . . . . . Intel | -11 -10 -9 -9 -8 ------- Run | Scr Mat Mat Min Mat Robot Analysis Total . | . . . . . Derelict Logs Recovered . | . . . . . Drone Launches . | . . . . . Drone Recoveries . | . . . . . Exploration | -11 -10 -9 -9 -8 ------------- Run | Scr Mat Mat Min Mat Turns Passed 1585 | 15 463 738 27 342 Spaces Moved 2572 | 27 772 1169 46 558 Core 111 | 27 83 . . 1 Treads . | . . . . . Legs . | . . . . . Wheels . | . . . . . Hover . | . . . . . Flight 2461 | . 689 1169 46 557 Fastest Speed 40 | 50 40 40 40 40 Average Speed 40 | 50 41 40 40 40 Slowest Speed 120 | 50 120 40 40 100 Overloaded Moves . | . . . . . Propulsion Burnouts . | . . . . . Robots Hopped 12 | . 4 4 2 2 Cave-ins Triggered . | . . . . . Exploration Rate (%) 36 | 3 77 53 14 35 Regions Visited 4 Branch Regions 1 Pre-discovered Areas . | . . . . . Known Exits Taken 2 | . . 1 1 . Unknown Exits Taken 2 | 1 1 . . . Scrap Searched . | . . . . . Spaces Dug 6 | . . . . 6 Terrain Destroyed 236 | . 32 134 . 70 Melee 6 | . . . . 6 Projectile . | . . . . . AOE 230 | . 32 134 . 64 Terrain Rammed . | . . . . . Walls Destroyed . | . . . . . Machines Disabled . | . . . . . Actions | -11 -10 -9 -9 -8 --------- Run | Scr Mat Mat Min Mat Total 2991 | 27 888 1382 51 643 Wait 263 | 1 82 122 8 50 Move 2544 | 26 763 1160 41 554 Hop 12 | . 4 4 2 2 Pick Up 3 | . . 3 . . Fast Attach 20 | . 7 8 . 5 Attach 3 | . . 3 . . Detach . | . . . . . Swap 2 | . . 1 . 1 Drop 19 | . 4 10 . 5 Fire 90 | . 20 53 . 17 Melee 9 | . . . . 9 Ram . | . . . . . Kick . | . . . . . Crush . | . . . . . Escape Stasis . | . . . . . Rewire . | . . . . . Trap . | . . . . . Miscellaneous 26 | . 8 18 . . Route ------- -11/Scrapyard -10/Materials (discovered 4 exits: *Mat x3 / *Min) -9/Materials (discovered 2 exits: *Mat / *Min) -9/Mines -8/Materials History --------- Turn | Location | Event 4 | -11/Scrapyard | Discovered new exit (range 16) 16 | -11/Scrapyard | Entered Materials 46 | -10/Materials | Discovered new exit (range 15) 219 | -10/Materials | Identified exit to Mines 307 | -10/Materials | Build established: Hacker-Mutant 356 | -10/Materials | Discovered new exit (range 3) 369 | -10/Materials | Discovered new exit (range 18) 479 | -10/Materials | Entered another Materials area 481 | -9/Materials | Reached level 2 481 | -9/Materials | Upgraded with Utility slot (x2) 571 | -9/Materials | Discovered new exit (range 16) 607 | -9/Materials | Reached level 3 742 | -9/Materials | Discovered new exit (range 15) 1043 | -9/Materials | Repaired Grenade Launcher 1166 | -9/Materials | Reached level 4 1215 | -9/Materials | Identified exit to Mines 1217 | -9/Materials | Entered Mines 1240 | -9/Mines | Discovered new exit (range 8) 1243 | -9/Mines | Identified exit to Materials 1244 | -9/Mines | Entered Materials 1246 | -8/Materials | Reached level 5 1330 | -8/Materials | Core integrity fell below 50% 1331 | -8/Materials | Reached level 6 1443 | -8/Materials | Core integrity fell below 20% 1586 | -8/Materials | Destroyed by G-47 Trooper with Particle Gun Last Messages --------------- Trojan loaded successfully. Testing... Terminal linked with 1 system. Awaiting botnet instructions. >>Index(Terminals) Found 10 terminals. Downloaded coordinate data. 01581_ Connecting with Garrison Access... >>Trojan(Watchers) Trojan loaded successfully. Testing... Watcher tracking enabled and active. >>Trojan(Decoy) Trojan loaded successfully. Testing... Decoy responsive and awaiting execution trigger. >>Force(Jam) ACCESS_DOOR_JAMMED 01581_ ALERT: Suspicious activity at Garrison Access M001. Dispatching Investigation squad. Map ----- +----------------------------------------------------+ | ?????????????????????## ##??# """"" !#???????????? | | ??????????????????????#%#???# """"" #??????????# | | ??????????????????????# #???# % #??????????## | | ??????????????????????# #??#####+######+########## | | ??????????????????????# #?### | | ??????????????????????# ##### | | ???????????????????+ | | ???????????????????########## | | ???????????????????# # % | | ???????????????????# """ # ################ | | ???????????????????# """ # #??????????????# | | ???????????????????# """ # #??????????????# | | ???????????????????# + +??????????????# | | ???????????????????# = # #??????????????# | | ???????????????????# # #??????????????# | | ???????????????????# ""T"" # #??????????????# | | ???????????????????# """"" # #??????????????# | | ???????????????????#+######## #??????????????? | | ??????????????????## ######## ?????????????? | | ??????????????????# ????????????? | | ??????????????????# ???????????? | | ??????????????????# ??????????? | | ?????????????#????# ####### ?????????? | | ?????????????# #### #??????####### ?????????? | | ?????????????# ##### # ???????????? | | ?????????????+ @/ #?????????????? | | ?????????????# ##### +?????????????? | | ?????????????#######+######?? g #?????????????? | | ????????????????# #???? g#?????????????? | | ????????????????# #?????? #?????????????? | | ????????????????# #????????#?????????????? | | ????????????????# #??????????????????????? | | ????????????????# """ """ #??w???????????????????? | | ????????????????# "G """ #??????????????????????? | | ????????????????# """ """ #??????????????????????? | | ????????????????# #??????????????????????? | | ????????????????###########??????????????????????? | | ?????????????????????????????????????????????????? | | ?????????????????????????????????????????????????? | | ?????????????????????????????????????????????????? | | ?????????????????????????????????????????????????? | | ?????????????????????????????????????????????????? | | ?????????????????????????????????????????????????? | | ?????????????????????????????????????????????????? | | ?????????????????????????????????????????????????? | | ?????????????????????????????????????????????????? | | ?????????????????????????????????????????????????? | | ?????????????????????????????????????????????????? | | ?????????????????????????????????????????????????? | | | +----------------------------------------------------+ Best States ------------- Heat Dissipation 25 Energy Generation 10 Energy Capacity 125 Matter Stores 300 Matter Capacity 300 Sight Range 18 Robot Scan Range 10 Terrain Scan Density 10 Evasion (%) 62 Offensive Hacking 35 Defensive Hacking 20 Item Schematics ----------------- Flight Unit | -10/Materials | Hacked System Shield | -9/Materials | Hacked Seismic Analyzer | -9/Materials | Extracted Hrd. Light Armor Plating | -9/Materials | Extracted Terrain Scan Processor | -9/Materials | Extracted Plasma Cutter | -9/Materials | Extracted Med. Armor Plating | -9/Materials | Extracted Targeting Computer | -9/Materials | Extracted Imp. Treads | -9/Materials | Extracted Imp. Assault Rifle | -9/Materials | Extracted Mining Claw | -9/Materials | Extracted Lgt. EM Pulse Cannon | -9/Materials | Extracted Com. Wheel | -9/Materials | Extracted Tractor Beam | -9/Materials | Extracted Reclamation Unit | -9/Materials | Extracted Hpw. Tractor Beam | -9/Materials | Extracted Field Recycling Unit | -9/Materials | Extracted EM Shotgun | -9/Materials | Extracted Wheel | -9/Materials | Extracted Cesium-ion Thruster | -8/Materials | Extracted Adv. Signal Interpreter | -8/Materials | Extracted Hrd. Medium Armor Plating | -8/Materials | Extracted Adv. Treads | -8/Materials | Extracted Robot Schematics ------------------ None Fabricated ------------ Nothing Alien Tech Used ----------------- None Achievements -------------- None Challenges ------------ None RPGLIKE | -11 -10 -9 -9 -8 --------- Run | Scr Mat Mat Min Mat Levels Raised 5 | . . 3 . 2 XP Earned 11987 | 3000 985 3698 500 3804 XP Spent 9750 | 2700 . 4450 . 2600 Upgrades 14 | 6 . 6 . 2 Utility Slot 2 | . . 2 . . Inventory Capacity 1 | . . 1 . . Hack Attack % 7 | 4 . 1 . 2 Hack Defense % 4 | 2 . 2 . . Protomatter Created 264 | . 117 144 . 3 Integrity Restored 562 | . 169 393 . . Core 562 | . 169 393 . . Protomatter Decayed 60 | . 60 . . . Game ------ Seed WeightTeslaStorage Manual? 0 Play Time 00:46:08 Cumulative 61.8 hours Start 2020.09.25 @ 15:35:50 End 2020.09.25 @ 16:21:09 Sessions 1 Manual Loads 0 Difficulty Rogue Special Mode Winter2019/RPGLIKE Game No. 79 Rogue 56 Adventurer 22 Explorer 1 Win Type - Total 1 Types 1/0/0/0/0/0/0/0/0 Lore% 34 Gallery% 44 Achievement% 35 Wizard Run 0 Options --------- ASCII 0 Keyboard 0 Movement Numpad Keybinds 0 Fullscreen 1 Font 14/SmallcapsGlow Map View 84x54 Tactical HUD 1 Map Filters NONE Filters NONE Steam 1 RUN: ec88af71-22c6-4272-baef-d9a2771b8d5f